[Event "88th GER-ch Men 2017"]
[Site "Apolda"]
[Date "2017.07.01"]
[Round "9"]
[White "Miller, Eduard"]
[Black "Schneider, Jana"]
[Result "1-0"]
[ECO "C00"]
[WhiteElo "2319"]
[BlackElo "2270"]
[Annotator "RC"]
[PlyCount "65"]
[EventDate "2017.??.??"]
[EventType "swiss"]
[EventCountry "GER"]
[SourceTitle "playchess.com"]
[Source "ChessBase"]
[SourceQuality "1"]
[TimeControl "40/6000+30:3000+30"]

1. e4 {[%emt 0:00:00]} e6 {[%emt 0:00:06]} 2. d3 {[%emt 0:00:00]} d5 {[%emt 0:00:08]} 3. Nd2 {[%emt 0:00:00]} Nf6 {[%emt 0:00:17]} 4. Ngf3 {[%emt 0:00:00]} Nc6 {[%emt 0:00:12]} 5. c3 {[%emt 0:00:00]} Bd6 {[%emt 0:00:16]} 6. g3 {[%emt 0:01:04]} O-O {[%emt 0:00:20]} 7. Bg2 {[%emt 0:00:03]} dxe4 {[%emt 0:00:13]} 8. dxe4 {[%emt 0:00:06]} e5 {[%emt 0:00:14]} 9. O-O {[%emt 0:00:11]} a5 {[%emt 0:01:23]} 10. Qc2 {[%emt 0:00:32]} Bc5 {[%emt 0:00:59]} 11. Nc4 {[%emt 0:02:26]} Qe7 {[%emt 0:00:24]} 12. Nh4 {[%emt 0:12:07]} Rd8 {[%emt 0:10:12]} 13. Ne3 {[%emt 0:09:03]} Be6 {[%emt 0:00:53]} 14. Nef5 {[%emt 0:06:42]} Qd7 {[%emt 0:02:22]} 15. Bg5 {[%emt 0:08:10]} Qd3 {[%emt 0:00:53]} 16. Qc1 {[%emt 0:18:59]} Nxe4 {[%emt 0:01:09]} 17. Bxd8 {[%emt 0:01:03]} Rxd8 {[%emt 0:00:41]} 18. Bxe4 {[%emt 0:01:36]} Qxe4 {[%emt 0:00:08]} 19. Qg5 {[%emt 0:00:05]} g6 {[%emt 0:13:10]} 20. Rae1 {[%emt 0:04:04]} Qc2 {[%emt 0:19:42]} 21. Rxe5 {[%emt 0:04:20]} Nxe5 {[%emt 0:01:37]} 22. Qxd8+ {[%emt 0:00:15]} Bf8 {[%emt 0:00:05]} 23. Nd4 {[%emt 0:04:26]} Qxb2 {[%emt 0:03:56]} 24. Qxc7 {[%emt 0:04:09]} Nd3 {[%emt 0:02:07]} 25. Nxe6 {[%emt 0:04:28]} fxe6 {[%emt 0:00:12]} 26. Nf3 {[%emt 0:02:17]} h6 {[%emt 0:07:39]} 27. Ne5 {[%emt 0:06:24]} Nxe5 {[%emt 0:01:14]} 28. Qxe5 {[%emt 0:00:04]} Qxa2 {[%emt 0:00:18]} 29. Rd1 {[%emt 0:00:06]} a4 {[%emt 0:04:21]} 30. Qf6 {[%emt 0:01:34]} Qc2 {[%emt 0:01:12]} 31. Qxe6+ {[%emt 0:00:12]} Kh7 {[%emt 0:01:05]} 32. Rd7+ {[%emt 0:00:59]} Kh8 {[%emt 0:00:38]} 33. Qf6+ {[%emt 0:00:06]} 1-0